[Event "79th ARM-ch 1st League 2018"]
[Site "Yerevan"]
[Date "2018.08.14"]
[Round "6"]
[White "Gharibyan, Mamikon"]
[Black "Hoghmrtsyan, Artur"]
[Result "1/2-1/2"]
[ECO "D37"]
[WhiteElo "2341"]
[BlackElo "2157"]
[Annotator "NA"]
[PlyCount "115"]
[EventDate "2018.08.09"]
[EventType "tourn"]
[EventCountry "ARM"]
[SourceTitle "playchess.com"]
[Source "ChessBase"]
[SourceQuality "1"]
[TimeControl "40/5400+30:1800+30"]

1. d4 {[%emt 0:03:44]} d5 {[%emt 0:00:00]} 2. c4 {[%emt 0:00:05]} e6 {[%emt 0:00:00]} 3. Nc3 {[%emt 0:00:13]} Be7 {[%emt 0:00:00]} 4. Nf3 {[%emt 0:00:08]} Nf6 {[%emt 0:00:01]} 5. Bf4 {[%emt 0:00:06]} O-O {[%emt 0:00:10]} 6. Rc1 {[%emt 0:00:03]} a6 {[%emt 0:09:13]} 7. e3 {[%emt 0:10:31]} dxc4 {[%emt 0:15:16] LiveBook: 16 Games} 8. Bxc4 {[%emt 0:00:06]} c5 {[%emt 0:03:01] D37: Queen's Gambit Declined: 5 Bf4} (8... b5 9. Bd3 Bb7 10. Qc2 Nbd7 11. Ng5 h6 12. Nh7 Re8 13. Nxf6+ Bxf6 14. Bh7+ Kh8 15. Be4 Bxe4 16. Nxe4 {½-½ (64) Svane,R (2526)-Kovalenko,I (2644) Gjakova 2016}) 9. O-O {[%emt 0:21:57]} b5 {[%emt 0:03:37]} 10. Bb3 $146 {[%emt 0:00:58]} ({Predecessor:} 10. Bd3 Nbd7 11. Qe2 Bb7 12. dxc5 Nxc5 13. Bc2 Rc8 14. Rfd1 Qe8 15. Ne5 b4 16. Nb1 {0-1 (37) Casarin,L (1838)-Cezar,W (2001) Sao Paulo 2015}) 10... Qb6 {[%emt 0:10:07]} 11. dxc5 {[%emt 0:02:01]} Bxc5 {[%emt 0:00:07]} 12. e4 {[%emt 0:00:58]} Bb7 {[%emt 0:11:32]} 13. e5 {[%emt 0:03:36]} Ne4 {[%emt 0:04:47]} 14. Nxe4 {[%emt 0:07:17]} Bxe4 {[%emt 0:00:13]} 15. Ng5 {[%emt 0:02:28]} Bg6 {[%emt 0:05:55]} 16. Qg4 {[%emt 0:02:56]} (16. Bc2 $14 Be7 17. Be3) 16... Bf5 {[%emt 0:03:07]} 17. Qg3 {[%emt 0:04:07]} Nc6 $11 {[%emt 0:00:58]} 18. Rfe1 {[%emt 0:10:34]} Nd4 {[%emt 0:04:53]} 19. Ne4 {[%emt 0:00:52]} Bxe4 {[%emt 0:01:39]} 20. Rxe4 {[%emt 0:00:47]} Qb7 {[%emt 0:05:36]} 21. Rce1 {[%emt 0:04:40]} Rfd8 {[%emt 0:06:55]} 22. Bg5 {[%emt 0:03:09]} Rd7 {[%emt 0:00:41]} 23. Qg4 {[%emt 0:03:02]} Qb6 {[%emt 0:04:16]} 24. Rf4 {[%emt 0:05:45]} a5 {[%emt 0:06:28]} 25. Bf6 {[%emt 0:01:54]} Bf8 {[%emt 0:00:47]} 26. Rd1 {[%emt 0:01:49]} a4 {[%emt 0:00:25]} 27. Bc2 {[%emt 0:00:17]} Rc8 {[%emt 0:01:29]} 28. Bxh7+ {[%emt 0:05:10]} Kxh7 {[%emt 0:00:13]} 29. Qh5+ {[%emt 0:02:49]} Kg8 {[%emt 0:00:02]} 30. h3 {[%emt 0:00:42]} Ne2+ {[%emt 0:01:11]} 31. Qxe2 {[%emt 0:00:05]} Rxd1+ {[%emt 0:00:10]} 32. Qxd1 {[%emt 0:00:03]} Rc4 {[%emt 0:00:16]} 33. Rf3 {[%emt 0:01:06]} Qd4 {[%emt 0:01:00]} 34. Qe2 {[%emt 0:01:50]} Qe4 {[%emt 0:01:43]} 35. Re3 {[%emt 0:00:29]} Qf4 {[%emt 0:00:45]} 36. g3 {[%emt 0:00:38]} Qf5 {[%emt 0:00:11]} 37. Bd8 {[%emt 0:00:50]} Bc5 {[%emt 0:00:58]} 38. Rc3 {[%emt 0:00:33]} Re4 {[%emt 0:00:05]} 39. Qc2 {[%emt 0:00:30]} Bd4 {[%emt 0:01:06]} 40. Rc8 {[%emt 0:00:00]} Kh7 {[%emt 0:00:00]} 41. Kg2 {[%emt 0:02:17]} Rxe5 {[%emt 0:12:56]} 42. Qxf5+ {[%emt 0:02:29]} Rxf5 {[%emt 0:00:45]} 43. Rc2 {[%emt 0:00:05]} Rd5 {[%emt 0:04:10]} 44. Ba5 {[%emt 0:01:02]} e5 {[%emt 0:03:34]} 45. Kf3 {[%emt 0:02:20]} g6 {[%emt 0:02:51]} 46. Bb4 {[%emt 0:07:10]} Rd7 {[%emt 0:01:28]} 47. Ke2 {[%emt 0:02:02]} g5 {[%emt 0:06:16]} 48. Bd2 {[%emt 0:04:15]} Kg6 {[%emt 0:00:16]} 49. g4 {[%emt 0:01:39]} f6 {[%emt 0:00:48]} 50. Be3 {[%emt 0:00:31]} Bxe3 {[%emt 0:02:11]} 51. fxe3 {[%emt 0:01:46]} Rh7 {[%emt 0:00:45]} 52. Rc5 {[%emt 0:00:15]} Rxh3 {[%emt 0:00:06]} 53. Rxb5 {[%emt 0:00:04]} e4 {[%emt 0:00:18]} 54. Rb4 {[%emt 0:00:30]} Rh2+ {[%emt 0:00:07]} 55. Kf1 {[%emt 0:00:39]} a3 {[%emt 0:01:15]} 56. bxa3 {[%emt 0:00:12]} Rxa2 {[%emt 0:00:10]} 57. Ra4 {[%emt 0:02:58]} Kf7 {[%emt 0:00:09]} 58. Rxe4 {[%emt 0:01:53]} 1/2-1/2

[Event "79th ARM-ch 1st League 2018"]
[Site "Yerevan"]
[Date "2018.08.14"]
[Round "6"]
[White "Poghosyan, Suren"]
[Black "Sargsyan, Tigran R"]
[Result "1/2-1/2"]
[ECO "D16"]
[WhiteElo "2301"]
[BlackElo "2136"]
[Annotator "NA"]
[PlyCount "94"]
[EventDate "2018.08.09"]
[EventType "tourn"]
[EventCountry "ARM"]
[SourceTitle "playchess.com"]
[Source "ChessBase"]
[SourceQuality "1"]
[TimeControl "40/5400+30:1800+30"]

1. d4 {[%emt 0:02:24]} d5 {[%emt 0:00:49]} 2. c4 {[%emt 0:00:18]} c6 {[%emt 0:00:28]} 3. Nc3 {[%emt 0:00:31]} Nf6 {[%emt 0:00:15]} 4. Nf3 {[%emt 0:00:18]} dxc4 {[%emt 0:00:47]} 5. a4 {[%emt 0:00:07]} e6 {[%emt 0:00:35]} 6. Bg5 {[%emt 0:12:20]} Bb4 {[%emt 0:03:25]} 7. e4 {[%emt 0:04:33]} Bxc3+ {[%emt 0:00:27]} 8. bxc3 {[%emt 0:00:09]} Qa5 {[%emt 0:00:17]} 9. e5 {[%emt 0:17:01]} Ne4 $1 {[%emt 0:00:33]} 10. Bd2 {[%emt 0:02:39]} c5 {[%emt 0:00:41] D44: Semi-Slav: Botvinnik System} 11. Bxc4 {[%emt 0:07:05] LiveBook: 24 Games} Nxd2 {[%emt 0:00:37]} (11... cxd4 12. cxd4 Nxd2 13. Nxd2 Nc6 14. O-O Nxd4 15. Nb3 Nxb3 16. Bb5+ Qxb5 17. axb5 Nxa1 18. Qxa1 {1-0 (29) Fedoseev,V (2683)-Motylev,A (2648) St Petersburg 2015}) 12. Qxd2 {[%emt 0:06:49]} cxd4 {[%emt 0:01:34]} 13. Bb5+ {[%emt 0:05:19]} Bd7 {[%emt 0:03:37]} 14. cxd4 {[%emt 0:02:39]} Qxd2+ $146 {[%emt 0:18:16]} ({Predecessor:} 14... Nc6 15. Rc1 Qxd2+ 16. Kxd2 a6 17. Bxc6 Bxc6 18. a5 {½-½ (48) Lin,W (2470)-Yegiazarian,A (2390) Moscow 1994}) 15. Nxd2 {[%emt 0:00:32]} Bc6 {[%emt 0:02:18]} 16. Nc4 {[%emt 0:04:28]} O-O {[%emt 0:03:37]} 17. O-O {[%emt 0:07:59]} Bd5 {[%emt 0:06:02]} 18. Ne3 $11 {[%emt 0:01:49]} Bc6 {[%emt 0:18:08]} 19. f4 {[%emt 0:06:11]} Rd8 {[%emt 0:12:17]} 20. Rfd1 {[%emt 0:00:53]} Be4 {[%emt 0:01:47]} 21. a5 {[%emt 0:04:19]} Nc6 {[%emt 0:03:20]} 22. Bxc6 {[%emt 0:05:01]} bxc6 {[%emt 0:00:08]} 23. Nc4 {[%emt 0:00:07]} Rab8 {[%emt 0:02:10]} 24. Nd6 {[%emt 0:00:11]} Bd5 {[%emt 0:01:35]} 25. Rdb1 {[%emt 0:00:10]} h6 {[%emt 0:16:46]} 26. a6 {[%emt 0:01:56]} Rb6 {[%emt 0:01:39]} 27. Rxb6 {[%emt 0:01:30]} axb6 {[%emt 0:00:01]} 28. a7 {[%emt 0:00:07]} Ra8 {[%emt 0:00:22]} 29. Nc8 {[%emt 0:00:15]} Rxc8 {[%emt 0:00:12]} 30. a8=Q {[%emt 0:00:05]} Rxa8 {[%emt 0:00:05]} 31. Rxa8+ {[%emt 0:00:05]} Kh7 {[%emt 0:00:03]} 32. Rb8 {[%emt 0:02:19]} b5 {[%emt 0:00:18]} 33. Rb7 {[%emt 0:00:18]} Kg6 {[%emt 0:01:26]} 34. Kf2 {[%emt 0:00:19]} Kf5 {[%emt 0:01:47]} 35. Rxf7+ {[%emt 0:05:58]} Ke4 {[%emt 0:00:05]} 36. Rxg7 {[%emt 0:00:20]} b4 {[%emt 0:00:29]} 37. g4 {[%emt 0:00:45]} b3 {[%emt 0:00:14]} 38. g5 {[%emt 0:00:36]} hxg5 {[%emt 0:00:35]} 39. fxg5 {[%emt 0:00:05]} c5 {[%emt 0:00:10]} 40. Rg8 {[%emt 0:00:00]} c4 {[%emt 0:00:00]} 41. g6 {[%emt 0:09:58]} b2 {[%emt 0:27:17]} 42. Rb8 {[%emt 0:03:22]} c3 {[%emt 0:00:08]} 43. g7 {[%emt 0:00:29]} c2 {[%emt 0:00:20]} 44. Rxb2 {[%emt 0:13:37]} c1=Q {[%emt 0:00:08]} 45. Re2+ {[%emt 0:00:05]} Kd3 {[%emt 0:00:46]} 46. g8=Q {[%emt 0:00:11]} Qf4+ {[%emt 0:00:33]} 47. Ke1 {[%emt 0:00:09]} Qc1+ {[%emt 0:00:13]} 1/2-1/2

[Event "79th ARM-ch 1st League 2018"]
[Site "Yerevan"]
[Date "2018.08.14"]
[Round "6"]
[White "Martirosyan, Garik"]
[Black "Babujian, Levon"]
[Result "1-0"]
[ECO "D37"]
[WhiteElo "2145"]
[BlackElo "2459"]
[Annotator "ChessBase"]
[PlyCount "129"]
[EventDate "2018.08.09"]
[EventType "tourn"]
[EventCountry "ARM"]
[SourceTitle "playchess.com"]
[Source "ChessBase"]
[SourceQuality "1"]
[TimeControl "40/5400+30:1800+30"]

1. d4 {[%emt 0:00:00]} Nf6 {[%emt 0:02:48]} 2. c4 {[%emt 0:00:21]} e6 {[%emt 0:00:51]} 3. Nf3 {[%emt 0:00:27]} d5 {[%emt 0:00:12]} 4. Nc3 {[%emt 0:00:20]} Be7 {[%emt 0:00:16]} 5. cxd5 {[%emt 0:00:25]} exd5 {[%emt 0:00:09]} 6. Bg5 {[%emt 0:00:20]} c6 {[%emt 0:00:27]} 7. Qc2 {[%emt 0:00:13]} Na6 {[%emt 0:00:55]} 8. a3 {[%emt 0:02:07]} g6 {[%emt 0:03:27]} 9. e3 {[%emt 0:01:52]} Bf5 {[%emt 0:00:09]} 10. Bd3 {[%emt 0:00:10]} Bxd3 {[%emt 0:00:34]} 11. Qxd3 {[%emt 0:00:03]} Nc7 {[%emt 0:00:51]} 12. O-O {[%emt 0:13:23]} Ne6 {[%emt 0:01:50]} 13. Bh4 {[%emt 0:00:55]} Nh5 {[%emt 0:02:36]} 14. Bxe7 {[%emt 0:03:02]} Qxe7 {[%emt 0:00:16]} 15. b4 {[%emt 0:00:49]} a6 {[%emt 0:00:07]} 16. Na4 {[%emt 0:03:19]} O-O {[%emt 0:00:33]} 17. Nc5 {[%emt 0:02:08]} f5 {[%emt 0:02:07]} 18. Rfe1 {[%emt 0:11:43]} Rae8 {[%emt 0:04:01]} 19. g3 {[%emt 0:13:57]} Nf6 {[%emt 0:01:32]} 20. a4 {[%emt 0:02:00]} Nd8 {[%emt 0:07:37]} 21. b5 {[%emt 0:02:56]} axb5 {[%emt 0:04:32]} 22. axb5 {[%emt 0:01:17]} Ne4 {[%emt 0:02:55]} 23. Nb3 {[%emt 0:05:07]} g5 {[%emt 0:02:26]} 24. bxc6 {[%emt 0:04:01]} bxc6 {[%emt 0:00:17]} 25. Ne5 {[%emt 0:01:04]} g4 {[%emt 0:08:48]} 26. Rec1 {[%emt 0:04:43]} Rf6 {[%emt 0:02:13]} 27. Ra6 {[%emt 0:04:24]} Ng5 {[%emt 0:04:44]} 28. Nd2 {[%emt 0:01:37]} Qb7 {[%emt 0:05:43]} 29. Rb1 {[%emt 0:00:42]} Qg7 {[%emt 0:00:18]} 30. Rbb6 {[%emt 0:00:56]} Qh6 {[%emt 0:02:49]} 31. Qe2 {[%emt 0:02:42]} Rfe6 {[%emt 0:06:32]} 32. Rb8 {[%emt 0:05:00]} Ngf7 {[%emt 0:03:31]} 33. Raa8 {[%emt 0:01:18]} Qf8 {[%emt 0:03:52]} 34. Nd7 {[%emt 0:02:09]} Qd6 {[%emt 0:01:43]} 35. Nc5 {[%emt 0:00:09]} R6e7 {[%emt 0:00:17]} 36. Qd3 {[%emt 0:00:38]} Qf6 {[%emt 0:01:27]} 37. Qa3 {[%emt 0:00:32]} Kg7 {[%emt 0:01:52]} 38. Nf1 {[%emt 0:06:14]} h5 {[%emt 0:04:47]} 39. Qa5 {[%emt 0:02:26]} Qd6 {[%emt 0:00:39]} 40. Rc8 {[%emt 0:00:00]} Rh8 {[%emt 0:00:00]} 41. Rab8 {[%emt 0:08:32]} h4 {[%emt 0:11:12]} 42. Qa8 {[%emt 0:01:35]} Ree8 {[%emt 0:02:57]} 43. Nb7 {[%emt 0:04:20]} Qe7 {[%emt 0:02:12]} 44. Nxd8 {[%emt 0:01:09]} Nxd8 {[%emt 0:03:52]} 45. gxh4 {[%emt 0:00:34]} Kg6 {[%emt 0:13:56]} 46. Ng3 {[%emt 0:05:07]} Qf6 {[%emt 0:01:43]} 47. h5+ {[%emt 0:00:36]} Kg5 {[%emt 0:00:33]} 48. Qa5 {[%emt 0:02:08]} f4 {[%emt 0:03:35]} 49. exf4+ {[%emt 0:00:08]} Kh4 {[%emt 0:00:11]} 50. Qd2 {[%emt 0:03:11]} Rhf8 {[%emt 0:07:10]} 51. h6 {[%emt 0:01:35]} Rf7 {[%emt 0:01:17]} 52. f5 {[%emt 0:01:32]} Ra7 {[%emt 0:00:42]} 53. Rb1 {[%emt 0:02:10]} Rae7 {[%emt 0:01:35]} 54. Rcb8 {[%emt 0:03:12]} Nf7 {[%emt 0:00:33]} 55. h7 {[%emt 0:02:30]} Ng5 {[%emt 0:00:03]} 56. Kg2 {[%emt 0:00:10]} Nxh7 {[%emt 0:02:46]} 57. Rxe8 {[%emt 0:00:31]} Rxe8 {[%emt 0:00:01]} 58. Rb7 {[%emt 0:00:09]} Ng5 {[%emt 0:00:30]} 59. Qf4 {[%emt 0:02:33]} Re1 {[%emt 0:00:39]} 60. Qc7 {[%emt 0:00:06]} Qxd4 {[%emt 0:00:58]} 61. Qd8 {[%emt 0:00:58]} Rg1+ {[%emt 0:02:42]} 62. Kxg1 {[%emt 0:00:08]} Qd1+ {[%emt 0:00:02]} 63. Nf1 {[%emt 0:00:34]} g3 {[%emt 0:00:06]} 64. hxg3+ {[%emt 0:00:55]} Kg4 {[%emt 0:00:04]} 65. Rg7 {[%emt 0:00:40]} 1-0

[Event "79th ARM-ch 1st League 2018"]
[Site "Yerevan"]
[Date "2018.08.15"]
[Round "7"]
[White "Hayrapetyan, Hovik"]
[Black "Mikaelyan, Arman"]
[Result "1/2-1/2"]
[ECO "E16"]
[WhiteElo "2439"]
[BlackElo "2496"]
[Annotator "ChessBase"]
[PlyCount "135"]
[EventDate "2018.08.09"]
[EventType "tourn"]
[EventCountry "ARM"]
[SourceTitle "playchess.com"]
[Source "ChessBase"]
[SourceQuality "1"]
[TimeControl "40/5400+30:1800+30"]

1. Nf3 {[%emt 0:00:00]} Nf6 {[%emt 0:00:00]} 2. c4 {[%emt 0:00:33]} e6 {[%emt 0:00:00]} 3. d4 {[%emt 0:00:07]} Bb4+ {[%emt 0:00:00]} 4. Bd2 {[%emt 0:00:26]} Qe7 {[%emt 0:00:07]} 5. Nc3 {[%emt 0:00:26]} O-O {[%emt 0:04:26]} 6. e3 {[%emt 0:00:20]} d6 {[%emt 0:03:54]} 7. a3 {[%emt 0:02:36]} Bxc3 {[%emt 0:00:09]} 8. Bxc3 {[%emt 0:00:02]} Ne4 {[%emt 0:00:12]} 9. Qc2 {[%emt 0:00:38]} Nxc3 {[%emt 0:06:56]} 10. Qxc3 {[%emt 0:00:08]} Nd7 {[%emt 0:00:04]} 11. Be2 {[%emt 0:00:18]} b6 {[%emt 0:00:20]} 12. O-O {[%emt 0:01:07]} Bb7 {[%emt 0:00:04]} 13. Rfd1 {[%emt 0:00:35]} f5 {[%emt 0:00:57]} 14. b4 {[%emt 0:01:33]} Nf6 {[%emt 0:03:57]} 15. c5 {[%emt 0:04:12]} Ne4 {[%emt 0:00:42]} 16. Qc2 {[%emt 0:00:29]} bxc5 {[%emt 0:07:05]} 17. dxc5 {[%emt 0:00:38]} dxc5 {[%emt 0:00:40]} 18. bxc5 {[%emt 0:02:22]} Bd5 {[%emt 0:00:03]} 19. Nd4 {[%emt 0:03:29]} Rad8 {[%emt 0:21:03]} 20. Rac1 {[%emt 0:03:01]} Kh8 {[%emt 0:03:42]} 21. f3 {[%emt 0:18:56]} Qg5 {[%emt 0:04:24]} 22. Rd3 {[%emt 0:07:10]} Nf6 {[%emt 0:00:38]} 23. Qd2 {[%emt 0:01:02]} Rb8 {[%emt 0:01:45]} 24. Qa5 {[%emt 0:08:19]} e5 {[%emt 0:03:01]} 25. Nc2 {[%emt 0:10:53]} Bxf3 {[%emt 0:07:32]} 26. Bxf3 {[%emt 0:00:43]} e4 {[%emt 0:00:04]} 27. Bxe4 {[%emt 0:00:35]} fxe4 {[%emt 0:01:58]} 28. Rd2 {[%emt 0:00:04]} Qe5 {[%emt 0:13:07]} 29. h3 {[%emt 0:00:01]} Nh5 {[%emt 0:09:10]} 30. Rcd1 {[%emt 0:01:54]} Ng3 {[%emt 0:01:17]} 31. Nd4 {[%emt 0:10:18]} Rbe8 {[%emt 0:00:53]} 32. Qc3 {[%emt 0:06:08]} h5 {[%emt 0:00:29]} 33. Qc2 {[%emt 0:02:43]} Rf6 {[%emt 0:00:43]} 34. Ne2 {[%emt 0:01:54]} h4 {[%emt 0:02:35]} 35. Nf4 {[%emt 0:00:49]} c6 {[%emt 0:01:02]} 36. Rd8 {[%emt 0:05:36]} Kh7 {[%emt 0:00:08]} 37. Rxe8 {[%emt 0:07:04]} Qxe8 {[%emt 0:00:04]} 38. Ne2 {[%emt 0:00:06]} Nf5 {[%emt 0:01:55]} 39. Qc3 {[%emt 0:00:34]} Qh5 {[%emt 0:00:31]} 40. Re1 {[%emt 0:00:00]} Qg5 {[%emt 0:00:00]} 41. Nf4 {[%emt 0:03:39]} Ng3 {[%emt 0:10:12]} 42. Qc4 {[%emt 0:06:48]} Qe5 {[%emt 0:02:24]} 43. Rd1 {[%emt 0:04:14]} Rf8 {[%emt 0:01:07]} 44. Kh2 {[%emt 0:03:17]} Nf5 {[%emt 0:05:53]} 45. Qe6 {[%emt 0:00:54]} Qxe6 {[%emt 0:00:18]} 46. Nxe6 {[%emt 0:00:04]} Re8 {[%emt 0:00:09]} 47. Nd4 {[%emt 0:07:01]} Rd8 {[%emt 0:01:16]} 48. Rb1 {[%emt 0:00:56]} Nxd4 {[%emt 0:00:15]} 49. exd4 {[%emt 0:00:01]} Rxd4 {[%emt 0:00:36]} 50. Rb7 {[%emt 0:00:14]} Ra4 {[%emt 0:02:11]} 51. Rc7 {[%emt 0:03:59]} e3 {[%emt 0:00:43]} 52. Kg1 {[%emt 0:00:01]} Rxa3 {[%emt 0:09:19]} 53. Kf1 {[%emt 0:00:05]} Ra2 {[%emt 0:00:35]} 54. Rxc6 {[%emt 0:00:07]} Rf2+ {[%emt 0:00:07]} 55. Kg1 {[%emt 0:01:20]} Rf5 {[%emt 0:00:51]} 56. Re6 {[%emt 0:00:09]} Rxc5 {[%emt 0:00:04]} 57. Rxe3 {[%emt 0:00:03]} a5 {[%emt 0:00:42]} 58. Re4 {[%emt 0:02:18]} g5 {[%emt 0:00:03]} 59. g3 {[%emt 0:00:27]} Rc1+ {[%emt 0:02:18]} 60. Kg2 {[%emt 0:00:18]} Rc2+ {[%emt 0:00:04]} 61. Kg1 {[%emt 0:00:10]} hxg3 {[%emt 0:00:18]} 62. Ra4 {[%emt 0:00:06]} Rc5 {[%emt 0:00:14]} 63. Kg2 {[%emt 0:00:05]} Kg6 {[%emt 0:01:31]} 64. Kxg3 {[%emt 0:00:05]} Kf5 {[%emt 0:00:02]} 65. h4 {[%emt 0:00:42]} gxh4+ {[%emt 0:00:05]} 66. Rxh4 {[%emt 0:00:04]} Ke6 {[%emt 0:03:48]} 67. Kf3 {[%emt 0:00:32]} Re5 {[%emt 0:00:05]} 68. Re4 {[%emt 0:00:22]} 1/2-1/2

[Event "79th ARM-ch 1st League 2018"]
[Site "Yerevan"]
[Date "2018.08.15"]
[Round "7"]
[White "Sargsyan, Tigran R"]
[Black "Gharibyan, Mamikon"]
[Result "0-1"]
[ECO "E15"]
[WhiteElo "2136"]
[BlackElo "2341"]
[Annotator "NA"]
[PlyCount "108"]
[EventDate "2018.08.09"]
[EventType "tourn"]
[EventCountry "ARM"]
[SourceTitle "playchess.com"]
[Source "ChessBase"]
[SourceQuality "1"]
[TimeControl "40/5400+30:1800+30"]

1. d4 {[%emt 0:00:00]} Nf6 {[%emt 0:00:00]} 2. c4 {[%emt 0:00:00]} e6 {[%emt 0:00:00]} 3. Nf3 {[%emt 0:00:09]} b6 {[%emt 0:00:05]} 4. g3 {[%emt 0:00:55]} Ba6 {[%emt 0:00:47]} 5. b3 {[%emt 0:00:23]} Bb4+ {[%emt 0:00:13]} 6. Bd2 {[%emt 0:00:08]} Be7 {[%emt 0:00:05]} 7. Nc3 {[%emt 0:00:47]} d5 {[%emt 0:00:21]} 8. cxd5 {[%emt 0:00:14]} exd5 {[%emt 0:00:07]} 9. Bg2 {[%emt 0:00:05]} O-O {[%emt 0:00:46]} 10. O-O {[%emt 0:00:07]} Re8 {[%emt 0:00:57]} 11. Qc2 {[%emt 0:02:58] E15: Queen's Indian: 4 g3 sidelines, 4 g3 Ba6 and 4 g3 Bb7 early deviations} Nbd7 {[%emt 0:04:47]} (11... c5 12. Rfd1 Nc6 13. Be3 Rc8 14. Qf5 g6 15. Qf4 cxd4 16. Nxd4 Bd6 17. Nxc6 Rxc6 18. Qa4 Rxc3 19. Qxa6 Rcxe3 20. fxe3 {1-0 (55) Ivanchuk,V (2729)-Karjakin,S (2760) Medias 2017}) 12. Rfd1 {[%emt 0:06:47] LiveBook: 3 Partien} Rc8 {[%emt 0:10:47]} 13. Ne5 $146 {[%emt 0:09:07]} ({Predecessor:} 13. Qb2 Bd6 14. Bg5 h6 15. Bxf6 Nxf6 16. e3 Qe7 17. a3 c6 18. b4 {½-½ (60) Goganov,A (2627)-Meribanov,V (2400) Riga 2016}) 13... c5 {[%emt 0:06:47]} 14. Nxd5 {[%emt 0:34:02]} Bxe2 {[%emt 0:19:38]} 15. Re1 {[%emt 0:04:48]} cxd4 {[%emt 0:05:05]} 16. Nc6 {[%emt 0:01:51]} Ba3 {[%emt 0:14:47]} 17. Bb4 {[%emt 0:11:33]} Nxd5 {[%emt 0:16:06]} 18. Bxd5 {[%emt 0:00:44]} Rxc6 {[%emt 0:08:08]} 19. Bxc6 {[%emt 0:00:59]} d3 {[%emt 0:01:15]} 20. Qc3 {[%emt 0:03:39]} Bxb4 {[%emt 0:00:31]} 21. Qxb4 {[%emt 0:00:14]} Ne5 {[%emt 0:00:16]} 22. Bg2 {[%emt 0:08:54] [#]} (22. Bxe8 $11 Nf3+ 23. Kg2) 22... h5 $1 {[%emt 0:04:40]} ({Much worse is} 22... d2 $6 23. Red1 $11) 23. Qb5 {[%emt 0:04:28] [#]} (23. a3 $17 {kämpft weiter.}) 23... Ng4 $1 {[%emt 0:02:54]} 24. Bf1 {[%emt 0:04:58]} Re5 {[%emt 0:00:15]} 25. Qc4 {[%emt 0:00:58]} Rc5 {[%emt 0:01:59]} 26. Qf4 {[%emt 0:00:55]} g5 {[%emt 0:00:15]} 27. Qe4 {[%emt 0:01:45]} Re5 {[%emt 0:00:53]} 28. Qg2 {[%emt 0:01:00]} Qd4 {[%emt 0:00:12]} 29. h3 {[%emt 0:01:03]} d2 {[%emt 0:00:52]} 30. hxg4 {[%emt 0:00:43]} dxe1=Q {[%emt 0:00:11]} 31. Rxe1 {[%emt 0:00:35] [#]} Bf3 $1 {[%emt 0:00:14]} 32. Qxf3 {[%emt 0:00:19]} (32. Rxe5 $17 Bxg2 33. Rxg5+ Kf8 34. Kxg2) 32... Rxe1 {[%emt 0:00:02]} 33. gxh5 {[%emt 0:00:42]} Qd1 {[%emt 0:01:23]} 34. Qxd1 Rxd1 35. Kg2 g4 36. Bc4 Kg7 37. h6+ Kxh6 38. Bxf7 {[#]} b5 $1 39. Be6 Kg5 40. f4+ gxf3+ 41. Kxf3 {[%emt 0:04:43]} b4 {[%emt 0:06:04]} 42. Ke2 {[%emt 0:05:40]} Ra1 {[%emt 0:01:20]} 43. Kd3 {[%emt 0:00:42]} Rxa2 {[%emt 0:00:14]} 44. Kc4 {[%emt 0:00:26]} a5 {[%emt 0:00:18]} 45. Kb5 {[%emt 0:01:47]} Kf6 $19 {[%emt 0:01:24]} 46. Bd7 {[%emt 0:04:48]} Ke5 {[%emt 0:00:50]} 47. g4 {[%emt 0:01:47]} Kd4 {[%emt 0:00:51]} 48. Be8 {[%emt 0:07:12]} Kc3 {[%emt 0:01:10]} 49. Bf7 {[%emt 0:01:03]} Rg2 {[%emt 0:00:28]} 50. Be6 {[%emt 0:00:40]} Re2 {[%emt 0:00:25]} 51. Bf7 {[%emt 0:03:52]} Re4 {[%emt 0:00:35]} 52. g5 {[%emt 0:01:16]} Re5+ {[%emt 0:00:08]} 53. Ka4 {[%emt 0:00:05]} Rxg5 {[%emt 0:00:07]} 54. Bd5 {[%emt 0:00:16]} Rg1 {[%emt 0:00:26]} 0-1

[Event "79th ARM-ch 1st League 2018"]
[Site "Yerevan"]
[Date "2018.08.17"]
[Round "8"]
[White "Hakobyan, Aram"]
[Black "Sargsyan, Tigran R"]
[Result "1/2-1/2"]
[ECO "A11"]
[WhiteElo "2545"]
[BlackElo "2136"]
[Annotator "ChessBase"]
[PlyCount "117"]
[EventDate "2018.08.09"]
[EventType "tourn"]
[EventCountry "ARM"]
[SourceTitle "playchess.com"]
[Source "ChessBase"]
[SourceQuality "1"]
[TimeControl "40/5400+30:1800+30"]

1. c4 {[%emt 0:01:06]} c6 {[%emt 0:00:00]} 2. Nf3 {[%emt 0:01:07]} d5 {[%emt 0:00:11]} 3. e3 {[%emt 0:00:51]} Bf5 {[%emt 0:01:29]} 4. Qb3 {[%emt 0:01:19]} Qc8 {[%emt 0:02:06]} 5. cxd5 {[%emt 0:04:13]} cxd5 {[%emt 0:00:09]} 6. Nc3 {[%emt 0:00:07]} e6 {[%emt 0:00:22]} 7. g4 {[%emt 0:06:14]} Bg6 {[%emt 0:05:14]} 8. h4 {[%emt 0:00:12]} Nc6 {[%emt 0:20:20]} 9. Qa4 {[%emt 0:15:37]} h5 {[%emt 0:12:10]} 10. Ne5 {[%emt 0:04:37]} Bh7 {[%emt 0:10:36]} 11. g5 {[%emt 0:16:01]} Bd6 {[%emt 0:03:07]} 12. Nxc6 {[%emt 0:01:31]} bxc6 {[%emt 0:00:08]} 13. b3 {[%emt 0:01:12]} Ne7 {[%emt 0:02:07]} 14. Ba3 {[%emt 0:01:25]} Qd7 {[%emt 0:02:30]} 15. Rc1 {[%emt 0:03:26]} O-O {[%emt 0:03:39]} 16. Ne2 {[%emt 0:00:14]} Be4 {[%emt 0:01:57]} 17. Rh3 {[%emt 0:05:27]} Bf5 {[%emt 0:04:29]} 18. Bxd6 {[%emt 0:01:42]} Qxd6 {[%emt 0:00:36]} 19. Rg3 {[%emt 0:00:23]} Bg4 {[%emt 0:10:22]} 20. f3 {[%emt 0:09:40]} Nf5 {[%emt 0:04:27]} 21. Rxc6 {[%emt 0:01:53]} Qe5 {[%emt 0:01:08]} 22. Rg1 {[%emt 0:07:50]} Bxf3 {[%emt 0:00:45]} 23. Qf4 {[%emt 0:00:44]} Qxf4 {[%emt 0:00:32]} 24. Nxf4 {[%emt 0:00:32]} d4 {[%emt 0:01:06]} 25. Rc7 {[%emt 0:01:29]} dxe3 {[%emt 0:00:14]} 26. dxe3 {[%emt 0:00:09]} Rfc8 {[%emt 0:05:30]} 27. Rxc8+ {[%emt 0:02:24]} Rxc8 {[%emt 0:00:02]} 28. Kf2 {[%emt 0:04:36]} Bg4 {[%emt 0:01:02]} 29. Bc4 {[%emt 0:00:42]} Rd8 {[%emt 0:01:42]} 30. g6 {[%emt 0:04:22]} Rd2+ {[%emt 0:00:12]} 31. Ke1 {[%emt 0:00:01]} Rd1+ {[%emt 0:00:20]} 32. Kf2 {[%emt 0:00:02]} Rd2+ {[%emt 0:00:00]} 33. Ke1 {[%emt 0:00:11]} Rd1+ {[%emt 0:01:08]} 34. Kf2 {[%emt 0:00:02]} Rxg1 {[%emt 0:00:13]} 35. gxf7+ {[%emt 0:00:14]} Kxf7 {[%emt 0:00:13]} 36. Bxe6+ {[%emt 0:00:16]} Kf6 {[%emt 0:02:29]} 37. Kxg1 {[%emt 0:00:07]} Nxe3 {[%emt 0:02:20]} 38. Bxg4 {[%emt 0:00:12]} hxg4 {[%emt 0:00:05]} 39. Nh5+ {[%emt 0:01:39]} Kg6 {[%emt 0:00:18]} 40. Ng3 {[%emt 0:00:00]} Kf6 {[%emt 0:00:00]} 41. b4 {[%emt 0:03:06]} Nc2 {[%emt 0:05:52]} 42. Nh5+ {[%emt 0:12:42]} Kg6 {[%emt 0:02:32]} 43. Nf4+ {[%emt 0:00:31]} Kf5 {[%emt 0:00:34]} 44. Nd3 {[%emt 0:03:02]} Ke4 {[%emt 0:01:15]} 45. Nc5+ {[%emt 0:00:09]} Kd5 {[%emt 0:14:26]} 46. Na6 {[%emt 0:00:55]} Kc4 {[%emt 0:06:44]} 47. Kf2 {[%emt 0:02:13]} Nxb4 {[%emt 0:01:12]} 48. Nxb4 {[%emt 0:01:43]} Kxb4 {[%emt 0:00:06]} 49. Kg3 {[%emt 0:00:04]} Ka3 {[%emt 0:00:05]} 50. Kxg4 {[%emt 0:00:03]} Kxa2 {[%emt 0:00:06]} 51. Kg5 {[%emt 0:00:01]} a5 {[%emt 0:00:06]} 52. Kg6 {[%emt 0:00:03]} a4 {[%emt 0:00:04]} 53. Kxg7 {[%emt 0:00:03]} a3 {[%emt 0:00:04]} 54. h5 {[%emt 0:00:02]} Kb1 {[%emt 0:00:05]} 55. h6 {[%emt 0:00:02]} a2 {[%emt 0:00:06]} 56. h7 {[%emt 0:00:01]} a1=Q+ {[%emt 0:00:15]} 57. Kg8 {[%emt 0:00:04]} Kc2 {[%emt 0:00:05]} 58. h8=Q {[%emt 0:01:43]} Qxh8+ {[%emt 0:00:06]} 59. Kxh8 {[%emt 0:00:10]} 1/2-1/2